[Event "Titled Tuesday Blitz August 17 2021"]
[White "Preotu, Razvan"]
[Black "Stoyanov, Tsvetan"]
[WhiteFideId "2613280"]
[BlackFideId "2917173"]
[WhiteElo "2407"]
[BlackElo "2191"]
[Result "0-1"]
[Round "11"]
[TimeControl "180+1"]
[Date "2021.08.17"]
[WhiteClock "0:00:07"]
[BlackClock "0:00:11"]

1. e4 {[%clk 0:03:00]}  c5 {[%clk 0:02:59]} 2. Nf3 {[%clk 0:03:00]}  d6 {[%clk 0:03:00]} 3. Bb5+ {[%clk 0:02:59]}  Nd7 {[%clk 0:02:59]} 4. a4 {[%clk 0:02:59]}  a6 {[%clk 0:02:59]} 5. Be2 {[%clk 0:02:58]}  g6 {[%clk 0:02:58]} 6. d4 {[%clk 0:02:55]}  cxd4 {[%clk 0:02:56]} 7. Nxd4 {[%clk 0:02:54]}  Bg7 {[%clk 0:02:56]} 8. Nc3 {[%clk 0:02:46]}  Ngf6 {[%clk 0:02:56]} 9. g4 {[%clk 0:02:45]}  Nc5 {[%clk 0:02:34]} 10. f3 {[%clk 0:02:32]}  e5 {[%clk 0:02:33]} 11. Nb3 {[%clk 0:02:30]}  Nxb3 {[%clk 0:02:33]} 12. cxb3 {[%clk 0:02:31]}  Be6 {[%clk 0:02:33]} 13. f4 {[%clk 0:01:52]}  exf4 {[%clk 0:02:23]} 14. Bxf4 {[%clk 0:01:51]}  d5 {[%clk 0:01:12]} 15. e5 {[%clk 0:01:32]}  Nd7 {[%clk 0:01:11]} 16. Nxd5 {[%clk 0:01:28]}  Qa5+ {[%clk 0:01:08]} 17. Nc3 {[%clk 0:01:27]}  O-O {[%clk 0:01:07]} 18. Qd4 {[%clk 0:01:20]}  Nxe5 {[%clk 0:01:05]} 19. b4 {[%clk 0:01:14]}  Qd8 {[%clk 0:00:43]} 20. Qe4 {[%clk 0:01:01]}  Nxg4 {[%clk 0:00:39]} 21. Rd1 {[%clk 0:00:47]}  Qb6 {[%clk 0:00:33]} 22. Bxg4 {[%clk 0:00:44]}  Bxg4 {[%clk 0:00:33]} 23. Rd6 {[%clk 0:00:44]}  Bxc3+ {[%clk 0:00:18]} 24. bxc3 {[%clk 0:00:44]}  Rfe8 {[%clk 0:00:17]} 25. Rxb6 {[%clk 0:00:24]}  Rxe4+ {[%clk 0:00:17]} 26. Kf2 {[%clk 0:00:25]}  Rxf4+ {[%clk 0:00:18]} 27. Kg3 {[%clk 0:00:26]}  Rc4 {[%clk 0:00:18]} 28. Rxb7 {[%clk 0:00:25]}  Be6 {[%clk 0:00:17]} 29. Rd1 {[%clk 0:00:23]}  Rxc3+ {[%clk 0:00:16]} 30. Kf4 {[%clk 0:00:24]}  Rc4+ {[%clk 0:00:15]} 31. Ke5 {[%clk 0:00:24]}  a5 {[%clk 0:00:14]} 32. b5 {[%clk 0:00:23]}  Rxa4 {[%clk 0:00:13]} 33. b6 {[%clk 0:00:24]}  Rb4 {[%clk 0:00:14]} 34. Rd6 {[%clk 0:00:17]}  a4 {[%clk 0:00:13]} 35. Ra7 {[%clk 0:00:18]}  Rb8 {[%clk 0:00:12]} 36. Ra6 {[%clk 0:00:18]}  Rb5+ {[%clk 0:00:11]} 37. Kf6 {[%clk 0:00:18]}  Rf5+ {[%clk 0:00:11]} 38. Ke7 {[%clk 0:00:18]}  Rd5 {[%clk 0:00:10]} 39. Rxd5 {[%clk 0:00:12]}  Bxd5 {[%clk 0:00:11]} 40. Kd6 {[%clk 0:00:12]}  Bc4 {[%clk 0:00:11]} 41. Kc7 {[%clk 0:00:06]}  Bxa6 {[%clk 0:00:11]} 42. Kxb8 {[%clk 0:00:07]}  a3 {[%clk 0:00:11]} 0-1


[Site "https://www.chess.com"]

[Event "Titled Tuesday Blitz August 17 2021"]
[White "Prraneeth Vuppala"]
[Black "Gracia Alvarez, Gerardo Antonio"]
[WhiteFideId "46622373"]
[BlackFideId "5109124"]
[WhiteElo "1759"]
[BlackElo "2148"]
[Result "1-0"]
[Round "11"]
[TimeControl "180+1"]
[Date "2021.08.17"]
[WhiteClock "0:00:24"]
[BlackClock "0:00:04"]

1. e4 {[%clk 0:03:00]}  c5 {[%clk 0:03:00]} 2. Nf3 {[%clk 0:03:00]}  d6 {[%clk 0:03:00]} 3. d4 {[%clk 0:03:00]}  cxd4 {[%clk 0:03:01]} 4. Nxd4 {[%clk 0:03:01]}  Nf6 {[%clk 0:03:01]} 5. Nc3 {[%clk 0:03:02]}  g6 {[%clk 0:03:02]} 6. Be3 {[%clk 0:03:00]}  Bg7 {[%clk 0:03:01]} 7. f3 {[%clk 0:03:01]}  O-O {[%clk 0:03:00]} 8. Qd2 {[%clk 0:03:01]}  Nc6 {[%clk 0:03:00]} 9. O-O-O {[%clk 0:03:02]}  d5 {[%clk 0:03:00]} 10. Qe1 {[%clk 0:03:02]}  e5 {[%clk 0:02:56]} 11. Nxc6 {[%clk 0:02:42]}  bxc6 {[%clk 0:02:54]} 12. exd5 {[%clk 0:02:32]}  Nxd5 {[%clk 0:02:45]} 13. Bc4 {[%clk 0:02:32]}  Be6 {[%clk 0:02:25]} 14. Bb3 {[%clk 0:02:25]}  Re8 {[%clk 0:02:07]} 15. Kb1 {[%clk 0:02:16]}  Nxc3+ {[%clk 0:01:55]} 16. Qxc3 {[%clk 0:02:15]}  Qc7 {[%clk 0:01:54]} 17. Bxe6 {[%clk 0:02:05]}  Rxe6 {[%clk 0:01:55]} 18. Qc4 {[%clk 0:02:04]}  e4 {[%clk 0:01:47]} 19. fxe4 {[%clk 0:01:55]}  Rb8 {[%clk 0:01:45]} 20. b3 {[%clk 0:01:37]}  Qe5 {[%clk 0:01:34]} 21. Bd4 {[%clk 0:01:36]}  Qxe4 {[%clk 0:01:34]} 22. Qc3 {[%clk 0:01:36]}  Bxd4 {[%clk 0:01:28]} 23. Rxd4 {[%clk 0:01:35]}  Qxg2 {[%clk 0:01:27]} 24. Rhd1 {[%clk 0:01:32]}  Rbe8 {[%clk 0:01:15]} 25. h4 {[%clk 0:01:20]}  h5 {[%clk 0:01:12]} 26. Kb2 {[%clk 0:01:13]}  Re2 {[%clk 0:01:06]} 27. Rd7 {[%clk 0:01:05]}  Qe4 {[%clk 0:00:27]} 28. Rf1 {[%clk 0:00:54]}  Re7 {[%clk 0:00:24]} 29. Rd8+ {[%clk 0:00:41]}  Re8 {[%clk 0:00:24]} 30. Rd7 {[%clk 0:00:40]}  Re7 {[%clk 0:00:25]} 31. Rxe7 {[%clk 0:00:30]}  Qxe7 {[%clk 0:00:24]} 32. Qxc6 {[%clk 0:00:30]}  Qxh4 {[%clk 0:00:18]} 33. Qa8+ {[%clk 0:00:26]}  Kg7 {[%clk 0:00:15]} 34. Qxa7 {[%clk 0:00:26]}  Re7 {[%clk 0:00:11]} 35. Qc5 {[%clk 0:00:25]}  Qe4 {[%clk 0:00:09]} 36. a4 {[%clk 0:00:24]}  h4 {[%clk 0:00:07]} 37. a5 {[%clk 0:00:23]}  h3 {[%clk 0:00:07]} 38. Qc3+ {[%clk 0:00:23]}  Qe5 {[%clk 0:00:05]} 39. Rh1 {[%clk 0:00:23]}  Qxc3+ {[%clk 0:00:03]} 40. Kxc3 {[%clk 0:00:24]}  Re3+ {[%clk 0:00:03]} 41. Kd4 {[%clk 0:00:25]}  Rg3 {[%clk 0:00:03]} 42. a6 {[%clk 0:00:25]}  Rg4+ {[%clk 0:00:03]} 43. Kc3 {[%clk 0:00:25]}  Rg3+ {[%clk 0:00:04]} 44. Kb2 {[%clk 0:00:24]} 1-0


[Site "https://www.chess.com"]

[Event "Titled Tuesday Blitz August 17 2021"]
[White "Richter, Nils"]
[Black "Mogirzan, Matei-Valeriu"]
[WhiteFideId "12990809"]
[BlackFideId "1257455"]
[WhiteElo "2289"]
[BlackElo "1733"]
[Result "0-1"]
[Round "11"]
[TimeControl "180+1"]
[Date "2021.08.18"]
[WhiteClock "0:00:16"]
[BlackClock "0:00:04"]

1. e4 {[%clk 0:03:00]}  e5 {[%clk 0:02:59]} 2. Nf3 {[%clk 0:03:00]}  Nf6 {[%clk 0:02:59]} 3. Nxe5 {[%clk 0:02:57]}  Nc6 {[%clk 0:02:58]} 4. Nxc6 {[%clk 0:02:56]}  dxc6 {[%clk 0:02:59]} 5. d3 {[%clk 0:02:52]}  Bc5 {[%clk 0:02:59]} 6. Be2 {[%clk 0:02:50]}  h5 {[%clk 0:02:58]} 7. h3 {[%clk 0:02:40]}  Qd4 {[%clk 0:02:55]} 8. Be3 {[%clk 0:02:33]}  Qxb2 {[%clk 0:02:50]} 9. Nd2 {[%clk 0:02:24]}  Bxe3 {[%clk 0:02:46]} 10. fxe3 {[%clk 0:02:25]}  Qe5 {[%clk 0:02:46]} 11. Nf3 {[%clk 0:02:20]}  Qg3+ {[%clk 0:02:45]} 12. Kd2 {[%clk 0:02:20]}  Qd6 {[%clk 0:02:20]} 13. e5 {[%clk 0:02:18]}  Ne4+ {[%clk 0:02:19]} 14. Ke1 {[%clk 0:02:09]}  Qb4+ {[%clk 0:02:18]} 15. Nd2 {[%clk 0:02:10]}  Nc3 {[%clk 0:02:00]} 16. Qc1 {[%clk 0:02:05]}  Qh4+ {[%clk 0:01:55]} 17. Kf1 {[%clk 0:02:04]}  Qg3 {[%clk 0:01:35]} 18. Nf3 {[%clk 0:01:45]}  Nxe2 {[%clk 0:01:33]} 19. Qd2 {[%clk 0:01:28]}  Be6 {[%clk 0:01:14]} 20. Qxe2 {[%clk 0:01:26]}  O-O-O {[%clk 0:01:08]} 21. Qf2 {[%clk 0:01:24]}  Qg6 {[%clk 0:01:02]} 22. Ke2 {[%clk 0:01:12]}  f6 {[%clk 0:01:00]} 23. Nh4 {[%clk 0:01:07]}  Qf7 {[%clk 0:00:52]} 24. Rhf1 {[%clk 0:01:02]}  Qd7 {[%clk 0:00:37]} 25. exf6 {[%clk 0:00:56]}  gxf6 {[%clk 0:00:38]} 26. Nf5 {[%clk 0:00:53]}  Rhe8 {[%clk 0:00:36]} 27. a3 {[%clk 0:00:44]}  Qd5 {[%clk 0:00:32]} 28. Ng7 {[%clk 0:00:39]}  Qc5 {[%clk 0:00:22]} 29. Kd2 {[%clk 0:00:20]}  Re7 {[%clk 0:00:16]} 30. Nxe6 {[%clk 0:00:19]}  Rxe6 {[%clk 0:00:17]} 31. Qf5 {[%clk 0:00:19]}  Qxe3+ {[%clk 0:00:16]} 32. Kc3 {[%clk 0:00:16]}  Qe5+ {[%clk 0:00:08]} 33. Qxe5 {[%clk 0:00:16]}  fxe5 {[%clk 0:00:09]} 34. Rf5 {[%clk 0:00:16]}  Rg8 {[%clk 0:00:08]} 35. Rg1 {[%clk 0:00:14]}  h4 {[%clk 0:00:05]} 36. Rh5 {[%clk 0:00:14]}  Reg6 {[%clk 0:00:05]} 37. Rxh4 {[%clk 0:00:13]}  Rxg2 {[%clk 0:00:06]} 38. Rxg2 {[%clk 0:00:14]}  Rxg2 {[%clk 0:00:07]} 39. Rh7 {[%clk 0:00:12]}  Rh2 {[%clk 0:00:05]} 40. h4 {[%clk 0:00:12]}  b6 {[%clk 0:00:04]} 41. h5 {[%clk 0:00:12]}  Kb7 {[%clk 0:00:05]} 42. h6 {[%clk 0:00:11]}  c5 {[%clk 0:00:05]} 43. Kb3 {[%clk 0:00:10]}  Kc6 {[%clk 0:00:04]} 44. a4 {[%clk 0:00:10]}  a6 {[%clk 0:00:04]} 45. c3 {[%clk 0:00:10]}  b5 {[%clk 0:00:04]} 46. axb5+ {[%clk 0:00:11]}  axb5 {[%clk 0:00:05]} 47. Re7 {[%clk 0:00:10]}  Rxh6 {[%clk 0:00:04]} 48. Rxe5 {[%clk 0:00:10]}  Rh3 {[%clk 0:00:04]} 49. Rg5 {[%clk 0:00:10]}  Rxd3 {[%clk 0:00:03]} 50. Rg6+ {[%clk 0:00:10]}  Rd6 {[%clk 0:00:03]} 51. Rg5 {[%clk 0:00:10]}  Kb6 {[%clk 0:00:03]} 52. Rf5 {[%clk 0:00:10]}  c6 {[%clk 0:00:04]} 53. Rg5 {[%clk 0:00:11]}  Rd1 {[%clk 0:00:04]} 54. Rf5 {[%clk 0:00:11]}  Rd3 {[%clk 0:00:04]} 55. Kc2 {[%clk 0:00:10]}  Rh3 {[%clk 0:00:04]} 56. Rg5 {[%clk 0:00:10]}  b4 {[%clk 0:00:03]} 57. c4 {[%clk 0:00:10]}  Ka5 {[%clk 0:00:03]} 58. Rxc5+ {[%clk 0:00:09]}  Kb6 {[%clk 0:00:03]} 59. Rg5 {[%clk 0:00:09]}  Rc3+ {[%clk 0:00:03]} 60. Kb2 {[%clk 0:00:09]}  Rxc4 {[%clk 0:00:04]} 61. Rg6 {[%clk 0:00:10]}  Kb5 {[%clk 0:00:04]} 62. Rg8 {[%clk 0:00:10]}  c5 {[%clk 0:00:04]} 63. Rb8+ {[%clk 0:00:11]}  Kc6 {[%clk 0:00:04]} 64. Rc8+ {[%clk 0:00:12]}  Kb7 {[%clk 0:00:05]} 65. Rd8 {[%clk 0:00:13]}  Rh4 {[%clk 0:00:04]} 66. Rd1 {[%clk 0:00:13]}  Kb6 {[%clk 0:00:05]} 67. Rg1 {[%clk 0:00:14]}  Kb5 {[%clk 0:00:05]} 68. Rg5 {[%clk 0:00:15]}  Rh2+ {[%clk 0:00:05]} 69. Kb3 {[%clk 0:00:15]}  Rh3+ {[%clk 0:00:06]} 70. Kb2 {[%clk 0:00:15]}  Rh4 {[%clk 0:00:04]} 71. Rf5 {[%clk 0:00:15]}  Kc4 {[%clk 0:00:04]} 72. Rf8 {[%clk 0:00:15]}  Rh2+ {[%clk 0:00:04]} 73. Kb1 {[%clk 0:00:16]}  Kb3 {[%clk 0:00:03]} 74. Rf3+ {[%clk 0:00:16]}  Ka4 {[%clk 0:00:04]} 75. Rf8 {[%clk 0:00:15]}  c4 {[%clk 0:00:04]} 76. Rf4 {[%clk 0:00:16]}  Kb3 {[%clk 0:00:04]} 77. Rf3+ {[%clk 0:00:15]}  c3 {[%clk 0:00:04]} 78. Rf1 {[%clk 0:00:16]}  Rb2+ {[%clk 0:00:03]} 79. Ka1 {[%clk 0:00:16]}  Ra2+ {[%clk 0:00:03]} 80. Kb1 {[%clk 0:00:17]}  c2+ {[%clk 0:00:04]} 81. Kc1 {[%clk 0:00:18]}  Ra1+ {[%clk 0:00:04]} 82. Kd2 {[%clk 0:00:19]}  Rxf1 {[%clk 0:00:05]} 83. Kd3 {[%clk 0:00:15]}  Kb2 {[%clk 0:00:04]} 84. Ke2 {[%clk 0:00:16]}  Rf8 {[%clk 0:00:04]} 0-1


[Site "https://www.chess.com"]

[Event "Titled Tuesday Blitz August 17 2021"]
[White "Rodchenkov, Vitaly"]
[Black "Papasimakopoulos, Alexandros"]
[WhiteFideId "4152964"]
[BlackFideId "4244125"]
[WhiteElo "2337"]
[BlackElo "2352"]
[Result "1-0"]
[Round "11"]
[TimeControl "180+1"]
[Date "2021.08.17"]
[WhiteClock "0:01:31"]
[BlackClock "0:00:55"]

1. e4 {[%clk 0:03:00]}  e6 {[%clk 0:02:59]} 2. d4 {[%clk 0:03:00]}  d5 {[%clk 0:03:00]} 3. Nd2 {[%clk 0:03:00]}  Nf6 {[%clk 0:02:58]} 4. e5 {[%clk 0:03:00]}  Nfd7 {[%clk 0:02:58]} 5. Qg4 {[%clk 0:03:01]}  b6 {[%clk 0:02:52]} 6. c3 {[%clk 0:03:00]}  Ba6 {[%clk 0:02:52]} 7. Bxa6 {[%clk 0:02:59]}  Nxa6 {[%clk 0:02:53]} 8. Ne2 {[%clk 0:02:59]}  c5 {[%clk 0:02:53]} 9. Nf3 {[%clk 0:02:59]}  cxd4 {[%clk 0:02:53]} 10. cxd4 {[%clk 0:02:59]}  Nb4 {[%clk 0:02:53]} 11. O-O {[%clk 0:02:59]}  Nd3 {[%clk 0:02:51]} 12. Nc3 {[%clk 0:02:57]}  Nxc1 {[%clk 0:02:51]} 13. Rfxc1 {[%clk 0:02:55]}  a6 {[%clk 0:02:48]} 14. h4 {[%clk 0:02:55]}  h5 {[%clk 0:02:47]} 15. Qf4 {[%clk 0:02:53]}  Be7 {[%clk 0:02:46]} 16. Rc2 {[%clk 0:02:50]}  O-O {[%clk 0:02:43]} 17. Rac1 {[%clk 0:02:49]}  f6 {[%clk 0:02:40]} 18. exf6 {[%clk 0:02:44]}  Nxf6 {[%clk 0:02:24]} 19. Re2 {[%clk 0:02:00]}  Bd6 {[%clk 0:02:15]} 20. Qg5 {[%clk 0:01:57]}  Qd7 {[%clk 0:02:02]} 21. Rce1 {[%clk 0:01:55]}  Rae8 {[%clk 0:02:01]} 22. Qg6 {[%clk 0:01:46]}  Bb4 {[%clk 0:01:40]} 23. Ng5 {[%clk 0:01:43]}  Bxc3 {[%clk 0:01:16]} 24. bxc3 {[%clk 0:01:42]}  b5 {[%clk 0:01:14]} 25. Rxe6 {[%clk 0:01:37]}  Rxe6 {[%clk 0:01:13]} 26. Rxe6 {[%clk 0:01:38]}  Re8 {[%clk 0:01:12]} 27. Rxf6 {[%clk 0:01:31]}  Re1+ {[%clk 0:00:55]} 28. Kh2 {[%clk 0:01:31]}  Qc7+ {[%clk 0:00:55]} 29. g3 {[%clk 0:01:31]} 1-0


[Site "https://www.chess.com"]

[Event "Titled Tuesday Blitz August 17 2021"]
[White "Rustemov, Alexander"]
[Black "Machidon, Cristi"]
[WhiteFideId "4119002"]
[BlackFideId "13904590"]
[WhiteElo "2691"]
[BlackElo "2312"]
[Result "0-1"]
[Round "11"]
[TimeControl "180+1"]
[Date "2021.08.17"]
[WhiteClock "0:00:49"]
[BlackClock "0:00:14"]

1. d4 {[%clk 0:03:00]}  Nf6 {[%clk 0:02:59]} 2. c4 {[%clk 0:03:00]}  e6 {[%clk 0:03:00]} 3. Nf3 {[%clk 0:03:00]}  Bb4+ {[%clk 0:03:00]} 4. Bd2 {[%clk 0:03:00]}  Qe7 {[%clk 0:03:00]} 5. g3 {[%clk 0:03:00]}  O-O {[%clk 0:03:00]} 6. Bg2 {[%clk 0:02:59]}  Re8 {[%clk 0:03:01]} 7. O-O {[%clk 0:02:58]}  Bxd2 {[%clk 0:03:01]} 8. Qxd2 {[%clk 0:02:56]}  d6 {[%clk 0:03:02]} 9. Nc3 {[%clk 0:02:55]}  e5 {[%clk 0:03:03]} 10. dxe5 {[%clk 0:02:49]}  dxe5 {[%clk 0:03:03]} 11. Nd5 {[%clk 0:02:49]}  Nxd5 {[%clk 0:03:03]} 12. cxd5 {[%clk 0:02:49]}  c6 {[%clk 0:03:00]} 13. e4 {[%clk 0:02:39]}  Bg4 {[%clk 0:02:47]} 14. Rac1 {[%clk 0:02:28]}  Bxf3 {[%clk 0:02:39]} 15. Bxf3 {[%clk 0:02:27]}  Rd8 {[%clk 0:02:36]} 16. Rfd1 {[%clk 0:02:23]}  cxd5 {[%clk 0:01:35]} 17. exd5 {[%clk 0:02:21]}  Nc6 {[%clk 0:01:36]} 18. d6 {[%clk 0:02:19]}  Qd7 {[%clk 0:01:36]} 19. Bxc6 {[%clk 0:02:12]}  bxc6 {[%clk 0:01:37]} 20. Qc3 {[%clk 0:02:11]}  Qe6 {[%clk 0:01:23]} 21. Qxc6 {[%clk 0:02:06]}  Rac8 {[%clk 0:01:23]} 22. Qa6 {[%clk 0:01:54]}  Rxc1 {[%clk 0:01:23]} 23. Rxc1 {[%clk 0:01:53]}  h5 {[%clk 0:01:23]} 24. h4 {[%clk 0:01:38]}  Rxd6 {[%clk 0:00:59]} 25. Qxa7 {[%clk 0:01:36]}  Rd2 {[%clk 0:00:59]} 26. Qb8+ {[%clk 0:01:21]}  Kh7 {[%clk 0:00:58]} 27. a3 {[%clk 0:01:18]}  Qf5 {[%clk 0:00:48]} 28. Qb6 {[%clk 0:01:14]}  f6 {[%clk 0:00:37]} 29. a4 {[%clk 0:01:12]}  Qd3 {[%clk 0:00:19]} 30. a5 {[%clk 0:01:06]}  Qe2 {[%clk 0:00:19]} 31. b4 {[%clk 0:01:02]}  Ra2 {[%clk 0:00:16]} 32. Qe3 {[%clk 0:00:57]}  Qb2 {[%clk 0:00:15]} 33. Qd3+ {[%clk 0:00:53]}  Kh6 {[%clk 0:00:15]} 34. Qc3 {[%clk 0:00:49]}  Qxf2+ {[%clk 0:00:14]} 0-1


[Site "https://www.chess.com"]

[Event "Titled Tuesday Blitz August 17 2021"]
[White "Sengupta, Deep"]
[Black "Babiy, Olga"]
[WhiteFideId "5008352"]
[BlackFideId "14117258"]
[WhiteElo "2347"]
[BlackElo "2253"]
[Result "1-0"]
[Round "11"]
[TimeControl "180+1"]
[Date "2021.08.17"]
[WhiteClock "0:00:20"]
[BlackClock "0:00:05"]

1. d4 {[%clk 0:03:00]}  d5 {[%clk 0:02:59]} 2. c4 {[%clk 0:03:00]}  dxc4 {[%clk 0:03:00]} 3. e4 {[%clk 0:03:00]}  Nf6 {[%clk 0:03:00]} 4. e5 {[%clk 0:02:59]}  Nd5 {[%clk 0:03:00]} 5. Bxc4 {[%clk 0:02:59]}  Nb6 {[%clk 0:03:01]} 6. Bb3 {[%clk 0:02:59]}  Nc6 {[%clk 0:02:59]} 7. Ne2 {[%clk 0:02:58]}  Bg4 {[%clk 0:02:53]} 8. f3 {[%clk 0:02:58]}  Bf5 {[%clk 0:02:45]} 9. O-O {[%clk 0:02:55]}  e6 {[%clk 0:02:44]} 10. Nbc3 {[%clk 0:02:55]}  Be7 {[%clk 0:02:40]} 11. Be3 {[%clk 0:02:54]}  Nb4 {[%clk 0:02:38]} 12. Ng3 {[%clk 0:02:46]}  Bg6 {[%clk 0:02:33]} 13. Nge4 {[%clk 0:02:41]}  N4d5 {[%clk 0:02:26]} 14. Bf2 {[%clk 0:02:39]}  c6 {[%clk 0:02:12]} 15. Qd2 {[%clk 0:02:38]}  Qc7 {[%clk 0:02:09]} 16. Bg3 {[%clk 0:02:35]}  O-O-O {[%clk 0:01:47]} 17. Nd6+ {[%clk 0:02:34]}  Kb8 {[%clk 0:01:37]} 18. a4 {[%clk 0:02:32]}  Nc8 {[%clk 0:01:36]} 19. Nce4 {[%clk 0:02:26]}  Qb6 {[%clk 0:01:12]} 20. Ra3 {[%clk 0:02:02]}  a5 {[%clk 0:01:05]} 21. Rc1 {[%clk 0:01:47]}  Nb4 {[%clk 0:00:53]} 22. Rd1 {[%clk 0:01:02]}  Bxe4 {[%clk 0:00:50]} 23. Nxe4 {[%clk 0:00:58]}  Nd5 {[%clk 0:00:42]} 24. Bc4 {[%clk 0:00:54]}  Bxa3 {[%clk 0:00:41]} 25. bxa3 {[%clk 0:00:54]}  Qc7 {[%clk 0:00:36]} 26. Rb1 {[%clk 0:00:52]}  Ndb6 {[%clk 0:00:25]} 27. Bb3 {[%clk 0:00:38]}  Qd7 {[%clk 0:00:25]} 28. Nd6 {[%clk 0:00:38]}  Nxd6 {[%clk 0:00:23]} 29. exd6 {[%clk 0:00:38]}  Nc8 {[%clk 0:00:24]} 30. Bc4 {[%clk 0:00:32]}  Nxd6 {[%clk 0:00:17]} 31. Ba6 {[%clk 0:00:30]}  Ka7 {[%clk 0:00:16]} 32. Qxa5 {[%clk 0:00:26]}  bxa6 {[%clk 0:00:15]} 33. Qb6+ {[%clk 0:00:26]}  Ka8 {[%clk 0:00:15]} 34. Bxd6 {[%clk 0:00:25]}  Rc8 {[%clk 0:00:11]} 35. Bc5 {[%clk 0:00:22]}  Rc7 {[%clk 0:00:07]} 36. Qxa6+ {[%clk 0:00:20]}  Ra7 {[%clk 0:00:05]} 37. Bxa7 {[%clk 0:00:20]} 1-0


[Site "https://www.chess.com"]

[Event "Titled Tuesday Blitz August 17 2021"]
[White "Shafigullina, Zarina"]
[Black "Lock, Gavin R"]
[WhiteFideId "24174220"]
[BlackFideId "408646"]
[WhiteElo "2087"]
[BlackElo "2104"]
[Result "1-0"]
[Round "11"]
[TimeControl "180+1"]
[Date "2021.08.18"]
[WhiteClock "0:01:30"]
[BlackClock "0:00:05"]

1. d4 {[%clk 0:03:00]}  d5 {[%clk 0:02:58]} 2. Nf3 {[%clk 0:03:01]}  Nf6 {[%clk 0:02:57]} 3. g3 {[%clk 0:03:01]}  c6 {[%clk 0:02:53]} 4. Bg2 {[%clk 0:03:01]}  Bf5 {[%clk 0:02:53]} 5. O-O {[%clk 0:03:01]}  e6 {[%clk 0:02:53]} 6. c4 {[%clk 0:03:01]}  h6 {[%clk 0:02:50]} 7. Nc3 {[%clk 0:03:01]}  Be7 {[%clk 0:02:49]} 8. Nd2 {[%clk 0:03:01]}  O-O {[%clk 0:02:46]} 9. e4 {[%clk 0:02:55]}  dxe4 {[%clk 0:02:45]} 10. Ndxe4 {[%clk 0:02:55]}  Nbd7 {[%clk 0:02:43]} 11. Be3 {[%clk 0:02:54]}  Nxe4 {[%clk 0:02:35]} 12. Nxe4 {[%clk 0:02:55]}  Nf6 {[%clk 0:02:35]} 13. Nc3 {[%clk 0:02:55]}  Qa5 {[%clk 0:02:35]} 14. a3 {[%clk 0:02:52]}  Rfd8 {[%clk 0:02:25]} 15. b4 {[%clk 0:02:52]}  Qa6 {[%clk 0:02:26]} 16. Qb3 {[%clk 0:02:49]}  Bd3 {[%clk 0:02:08]} 17. b5 {[%clk 0:02:49]}  cxb5 {[%clk 0:01:50]} 18. cxb5 {[%clk 0:02:50]}  Qa5 {[%clk 0:01:48]} 19. Rfd1 {[%clk 0:02:49]}  Bg6 {[%clk 0:01:37]} 20. Bxb7 {[%clk 0:02:44]}  Rab8 {[%clk 0:01:37]} 21. Bg2 {[%clk 0:02:36]}  Rdc8 {[%clk 0:01:28]} 22. Rdc1 {[%clk 0:02:36]}  Bd6 {[%clk 0:01:10]} 23. a4 {[%clk 0:02:33]}  Qb4 {[%clk 0:00:48]} 24. Qxb4 {[%clk 0:02:28]}  Bxb4 {[%clk 0:00:49]} 25. Na2 {[%clk 0:02:29]}  Ba3 {[%clk 0:00:47]} 26. Rxc8+ {[%clk 0:02:25]}  Rxc8 {[%clk 0:00:48]} 27. Bc6 {[%clk 0:02:21]}  Nd5 {[%clk 0:00:40]} 28. Bc1 {[%clk 0:02:21]}  Bd6 {[%clk 0:00:33]} 29. Bd2 {[%clk 0:02:14]}  Ne7 {[%clk 0:00:19]} 30. Bb4 {[%clk 0:02:10]}  Nxc6 {[%clk 0:00:16]} 31. Rc1 {[%clk 0:01:57]}  Bxb4 {[%clk 0:00:09]} 32. Nxb4 {[%clk 0:01:39]}  Ne7 {[%clk 0:00:08]} 33. Rxc8+ {[%clk 0:01:39]}  Nxc8 {[%clk 0:00:09]} 34. f3 {[%clk 0:01:34]}  Kf8 {[%clk 0:00:08]} 35. a5 {[%clk 0:01:33]}  Ke7 {[%clk 0:00:05]} 36. Nc6+ {[%clk 0:01:33]}  Kd6 {[%clk 0:00:04]} 37. Nxa7 {[%clk 0:01:30]}  Nxa7 {[%clk 0:00:05]} 38. b6 {[%clk 0:01:30]} 1-0


[Site "https://www.chess.com"]